[Event "Titled Tuesday Blitz January 10 Early 2023"]
[White "Ter-Sahakyan, Samvel"]
[Black "Rakhmatullaev, Almas"]
[WhiteFideId "13302531"]
[BlackFideId "14205793"]
[WhiteElo "2617"]
[BlackElo "2275"]
[Result "0-1"]
[Round "07"]
[TimeControl "180+2"]
[Date "2023.01.10"]
[WhiteClock "0:00:05"]
[BlackClock "0:00:11"]

1. d4 {[%clk 0:02:59]}  Nf6 {[%clk 0:03:00]} 2. c4 {[%clk 0:03:00]}  e6 {[%clk 0:03:00]} 3. Nf3 {[%clk 0:03:00]}  d5 {[%clk 0:03:01]} 4. Nc3 {[%clk 0:02:59]}  a6 {[%clk 0:03:01]} 5. cxd5 {[%clk 0:02:58]}  exd5 {[%clk 0:03:02]} 6. Bg5 {[%clk 0:02:58]}  Be7 {[%clk 0:03:02]} 7. e3 {[%clk 0:02:58]}  h6 {[%clk 0:03:02]} 8. Bh4 {[%clk 0:02:54]}  O-O {[%clk 0:03:02]} 9. Bd3 {[%clk 0:02:54]}  Be6 {[%clk 0:03:00]} 10. O-O {[%clk 0:02:40]}  Nbd7 {[%clk 0:03:01]} 11. Bg3 {[%clk 0:02:12]}  c5 {[%clk 0:02:58]} 12. dxc5 {[%clk 0:02:10]}  Nxc5 {[%clk 0:02:55]} 13. Rc1 {[%clk 0:02:10]}  Nxd3 {[%clk 0:02:45]} 14. Qxd3 {[%clk 0:02:10]}  Rc8 {[%clk 0:02:46]} 15. Be5 {[%clk 0:02:06]}  Nd7 {[%clk 0:02:26]} 16. Bd4 {[%clk 0:02:03]}  b5 {[%clk 0:02:12]} 17. h3 {[%clk 0:02:01]}  Qa5 {[%clk 0:02:04]} 18. a3 {[%clk 0:01:57]}  Qd8 {[%clk 0:01:41]} 19. Ne2 {[%clk 0:01:56]}  Rc4 {[%clk 0:01:39]} 20. Nf4 {[%clk 0:01:47]}  Nc5 {[%clk 0:01:29]} 21. Bxc5 {[%clk 0:01:38]}  Bxc5 {[%clk 0:01:27]} 22. Ne5 {[%clk 0:01:38]}  Rxc1 {[%clk 0:01:22]} 23. Rxc1 {[%clk 0:01:39]}  Bd6 {[%clk 0:01:22]} 24. Nc6 {[%clk 0:01:29]}  Qf6 {[%clk 0:01:05]} 25. Qd4 {[%clk 0:01:18]}  Qg5 {[%clk 0:00:47]} 26. Qd2 {[%clk 0:01:03]}  Bf5 {[%clk 0:00:22]} 27. Qxd5 {[%clk 0:00:56]}  Bxf4 {[%clk 0:00:21]} 28. exf4 {[%clk 0:00:56]}  Qxf4 {[%clk 0:00:22]} 29. Ne7+ {[%clk 0:00:37]}  Kh8 {[%clk 0:00:20]} 30. Qc5 {[%clk 0:00:37]}  Be6 {[%clk 0:00:17]} 31. Re1 {[%clk 0:00:29]}  Rd8 {[%clk 0:00:12]} 32. Nc6 {[%clk 0:00:05]}  Qd6 {[%clk 0:00:12]} 33. Qxd6 {[%clk 0:00:04]}  Rxd6 {[%clk 0:00:13]} 34. Rc1 {[%clk 0:00:04]}  Bc4 {[%clk 0:00:10]} 35. Ne5 {[%clk 0:00:04]}  Be6 {[%clk 0:00:08]} 36. Rc7 {[%clk 0:00:04]}  Kg8 {[%clk 0:00:07]} 37. b4 {[%clk 0:00:02]}  Rd5 {[%clk 0:00:05]} 38. Nf3 {[%clk 0:00:02]}  Rd3 {[%clk 0:00:05]} 39. Ra7 {[%clk 0:00:02]}  Rxa3 {[%clk 0:00:05]} 40. Nd4 {[%clk 0:00:03]}  Bc4 {[%clk 0:00:06]} 41. Nf5 {[%clk 0:00:03]}  Ra4 {[%clk 0:00:04]} 42. Nd6 {[%clk 0:00:03]}  Rxb4 {[%clk 0:00:04]} 43. Rxa6 {[%clk 0:00:03]}  Be6 {[%clk 0:00:04]} 44. Rb6 {[%clk 0:00:04]}  Rb1+ {[%clk 0:00:05]} 45. Kh2 {[%clk 0:00:04]}  b4 {[%clk 0:00:05]} 46. f4 {[%clk 0:00:05]}  g6 {[%clk 0:00:05]} 47. g4 {[%clk 0:00:04]}  b3 {[%clk 0:00:05]} 48. f5 {[%clk 0:00:05]}  gxf5 {[%clk 0:00:05]} 49. gxf5 {[%clk 0:00:05]}  Bd5 {[%clk 0:00:06]} 50. Rb5 {[%clk 0:00:06]}  Rd1 {[%clk 0:00:06]} 51. f6 {[%clk 0:00:04]}  Rd2+ {[%clk 0:00:06]} 52. Kg3 {[%clk 0:00:04]}  b2 {[%clk 0:00:06]} 53. Nf5 {[%clk 0:00:05]}  Kh7 {[%clk 0:00:06]} 54. Ne3 {[%clk 0:00:03]}  Be4 {[%clk 0:00:06]} 55. Nc4 {[%clk 0:00:04]}  Rd3+ {[%clk 0:00:04]} 56. Kf4 {[%clk 0:00:04]}  Rd4 {[%clk 0:00:04]} 57. Rxb2 {[%clk 0:00:01]}  Rxc4 {[%clk 0:00:04]} 58. Ke5 {[%clk 0:00:01]}  Bg6 {[%clk 0:00:04]} 59. Rg2 {[%clk 0:00:01]}  Re4+ {[%clk 0:00:04]} 60. Kd6 {[%clk 0:00:02]}  Re6+ {[%clk 0:00:04]} 61. Kd7 {[%clk 0:00:03]}  Rxf6 {[%clk 0:00:05]} 62. h4 {[%clk 0:00:03]}  Rf5 {[%clk 0:00:06]} 63. Ke7 {[%clk 0:00:03]}  h5 {[%clk 0:00:06]} 64. Kf8 {[%clk 0:00:04]}  Rf4 {[%clk 0:00:06]} 65. Re2 {[%clk 0:00:04]}  Rxh4 {[%clk 0:00:06]} 66. Re8 {[%clk 0:00:04]}  Rg4 {[%clk 0:00:07]} 67. Ke7 {[%clk 0:00:03]}  Kh6 {[%clk 0:00:08]} 68. Kf6 {[%clk 0:00:03]}  Rf4+ {[%clk 0:00:08]} 69. Ke5 {[%clk 0:00:03]}  Kg5 {[%clk 0:00:09]} 70. Rh8 {[%clk 0:00:03]}  h4 {[%clk 0:00:09]} 71. Kd6 {[%clk 0:00:03]}  Rg4 {[%clk 0:00:10]} 72. Ke7 {[%clk 0:00:03]}  Rg3 {[%clk 0:00:10]} 73. Kf8 {[%clk 0:00:04]}  f5 {[%clk 0:00:11]} 74. Kg7 {[%clk 0:00:05]}  f4 {[%clk 0:00:11]} 75. Re8 {[%clk 0:00:05]}  Bxe8 {[%clk 0:00:11]} 0-1


[Site "https://www.chess.com"]

[Event "Titled Tuesday Blitz January 10 Early 2023"]
[White "Papasimakopoulos, Alexandros"]
[Black "Le, Tuan Minh"]
[WhiteFideId "4244125"]
[BlackFideId "12401153"]
[WhiteElo "2401"]
[BlackElo "2542"]
[Result "0-1"]
[Round "07"]
[TimeControl "180+2"]
[Date "2023.01.10"]
[WhiteClock "0:00:13"]
[BlackClock "0:00:55"]

1. d4 {[%clk 0:03:00]}  d5 {[%clk 0:02:59]} 2. c4 {[%clk 0:03:01]}  c6 {[%clk 0:03:00]} 3. cxd5 {[%clk 0:03:01]}  cxd5 {[%clk 0:03:01]} 4. Bf4 {[%clk 0:03:01]}  Nf6 {[%clk 0:03:01]} 5. Nc3 {[%clk 0:03:00]}  Nc6 {[%clk 0:03:02]} 6. e3 {[%clk 0:03:01]}  a6 {[%clk 0:03:02]} 7. Bd3 {[%clk 0:03:00]}  Bg4 {[%clk 0:03:03]} 8. Nge2 {[%clk 0:03:00]}  e6 {[%clk 0:03:03]} 9. Rc1 {[%clk 0:02:58]}  Bd6 {[%clk 0:03:03]} 10. f3 {[%clk 0:02:57]}  Bh5 {[%clk 0:03:01]} 11. O-O {[%clk 0:02:57]}  O-O {[%clk 0:03:01]} 12. Na4 {[%clk 0:02:57]}  Re8 {[%clk 0:02:57]} 13. Bxd6 {[%clk 0:02:53]}  Qxd6 {[%clk 0:02:58]} 14. Nf4 {[%clk 0:02:54]}  Bg6 {[%clk 0:02:56]} 15. Nxg6 {[%clk 0:02:49]}  hxg6 {[%clk 0:02:57]} 16. f4 {[%clk 0:02:49]}  Rac8 {[%clk 0:02:55]} 17. Nc5 {[%clk 0:02:45]}  Rc7 {[%clk 0:02:47]} 18. Qb3 {[%clk 0:02:42]}  Qe7 {[%clk 0:02:34]} 19. Qb6 {[%clk 0:02:38]}  Rec8 {[%clk 0:02:17]} 20. Rc3 {[%clk 0:02:34]}  Ng4 {[%clk 0:02:11]} 21. Be2 {[%clk 0:02:19]}  Nh6 {[%clk 0:02:09]} 22. Rfc1 {[%clk 0:02:14]}  Nd8 {[%clk 0:02:07]} 23. Bd3 {[%clk 0:02:04]}  g5 {[%clk 0:02:03]} 24. Nb3 {[%clk 0:01:19]}  Rxc3 {[%clk 0:01:54]} 25. Rxc3 {[%clk 0:01:18]}  Rxc3 {[%clk 0:01:54]} 26. bxc3 {[%clk 0:01:19]}  Ng4 {[%clk 0:01:54]} 27. f5 {[%clk 0:00:52]}  exf5 {[%clk 0:01:51]} 28. e4 {[%clk 0:00:51]}  fxe4 {[%clk 0:01:44]} 29. Be2 {[%clk 0:00:51]}  Nf6 {[%clk 0:01:44]} 30. Nc5 {[%clk 0:00:51]}  e3 {[%clk 0:01:32]} 31. h3 {[%clk 0:00:50]}  g6 {[%clk 0:01:27]} 32. a4 {[%clk 0:00:50]}  Nh5 {[%clk 0:01:27]} 33. Bxh5 {[%clk 0:00:43]}  gxh5 {[%clk 0:01:28]} 34. Kf1 {[%clk 0:00:44]}  Ne6 {[%clk 0:01:22]} 35. Nd3 {[%clk 0:00:41]}  Qf6+ {[%clk 0:01:19]} 36. Ke1 {[%clk 0:00:41]}  Qf5 {[%clk 0:01:09]} 37. Ke2 {[%clk 0:00:33]}  Nf4+ {[%clk 0:01:01]} 38. Nxf4 {[%clk 0:00:34]}  gxf4 {[%clk 0:01:02]} 39. Qb2 {[%clk 0:00:21]}  Qg6 {[%clk 0:01:02]} 40. Kf1 {[%clk 0:00:19]}  Qd3+ {[%clk 0:01:03]} 41. Ke1 {[%clk 0:00:17]}  b5 {[%clk 0:00:54]} 42. axb5 {[%clk 0:00:17]}  axb5 {[%clk 0:00:55]} 43. h4 {[%clk 0:00:16]}  Kg7 {[%clk 0:00:54]} 44. Qa2 {[%clk 0:00:12]}  Qxc3+ {[%clk 0:00:55]} 45. Ke2 {[%clk 0:00:13]}  Qc4+ {[%clk 0:00:55]} 0-1


[Site "https://www.chess.com"]

[Event "Titled Tuesday Blitz January 10 Early 2023"]
[White "Dominguez Perez, Leinier"]
[Black "Shuvalova, Polina"]
[WhiteFideId "3503240"]
[BlackFideId "24171760"]
[WhiteElo "2739"]
[BlackElo "2484"]
[Result "1-0"]
[Round "07"]
[TimeControl "180+2"]
[Date "2023.01.10"]
[WhiteClock "0:00:04"]
[BlackClock "0:00:04"]

1. e4 {[%clk 0:03:00]}  e5 {[%clk 0:02:58]} 2. Nf3 {[%clk 0:03:00]}  Nc6 {[%clk 0:02:57]} 3. Bb5 {[%clk 0:03:00]}  a6 {[%clk 0:02:57]} 4. Ba4 {[%clk 0:03:00]}  Nf6 {[%clk 0:02:56]} 5. O-O {[%clk 0:03:00]}  Be7 {[%clk 0:02:55]} 6. Re1 {[%clk 0:02:59]}  b5 {[%clk 0:02:55]} 7. Bb3 {[%clk 0:02:59]}  O-O {[%clk 0:02:55]} 8. a4 {[%clk 0:02:59]}  Bb7 {[%clk 0:02:52]} 9. d3 {[%clk 0:02:59]}  d6 {[%clk 0:02:52]} 10. Nbd2 {[%clk 0:02:59]}  h6 {[%clk 0:02:44]} 11. Nf1 {[%clk 0:02:57]}  Re8 {[%clk 0:02:44]} 12. Ne3 {[%clk 0:02:54]}  Bf8 {[%clk 0:02:43]} 13. Bd2 {[%clk 0:02:43]}  Ne7 {[%clk 0:02:35]} 14. h3 {[%clk 0:02:22]}  Ng6 {[%clk 0:02:33]} 15. c4 {[%clk 0:02:00]}  bxc4 {[%clk 0:02:06]} 16. Bxc4 {[%clk 0:01:57]}  Qd7 {[%clk 0:01:54]} 17. b4 {[%clk 0:01:35]}  d5 {[%clk 0:01:41]} 18. exd5 {[%clk 0:01:34]}  Nxd5 {[%clk 0:01:41]} 19. Qb3 {[%clk 0:01:34]}  Ndf4 {[%clk 0:01:29]} 20. Nh2 {[%clk 0:01:05]}  Rad8 {[%clk 0:01:19]} 21. Rad1 {[%clk 0:01:03]}  Nh4 {[%clk 0:01:14]} 22. f3 {[%clk 0:00:59]}  Ne6 {[%clk 0:01:02]} 23. Bc3 {[%clk 0:00:53]}  Ng6 {[%clk 0:01:01]} 24. Neg4 {[%clk 0:00:41]}  Nd4 {[%clk 0:00:46]} 25. Qb2 {[%clk 0:00:37]}  Bc6 {[%clk 0:00:38]} 26. a5 {[%clk 0:00:26]}  Bb7 {[%clk 0:00:32]} 27. Ne3 {[%clk 0:00:23]}  Kh8 {[%clk 0:00:28]} 28. Qa2 {[%clk 0:00:22]}  Ne6 {[%clk 0:00:26]} 29. Neg4 {[%clk 0:00:18]}  f6 {[%clk 0:00:26]} 30. Ne3 {[%clk 0:00:16]}  Ngf4 {[%clk 0:00:25]} 31. Qb1 {[%clk 0:00:13]}  c5 {[%clk 0:00:24]} 32. b5 {[%clk 0:00:13]}  Rb8 {[%clk 0:00:23]} 33. b6 {[%clk 0:00:13]}  Nd4 {[%clk 0:00:22]} 34. Qa2 {[%clk 0:00:13]}  Bc6 {[%clk 0:00:21]} 35. Qf2 {[%clk 0:00:12]}  Bb7 {[%clk 0:00:19]} 36. Nc2 {[%clk 0:00:10]}  Rbd8 {[%clk 0:00:18]} 37. Nxd4 {[%clk 0:00:10]}  exd4 {[%clk 0:00:14]} 38. Bd2 {[%clk 0:00:10]}  Nd5 {[%clk 0:00:15]} 39. Rxe8 {[%clk 0:00:09]}  Rxe8 {[%clk 0:00:15]} 40. Re1 {[%clk 0:00:08]}  Bd6 {[%clk 0:00:11]} 41. Nf1 {[%clk 0:00:08]}  Be5 {[%clk 0:00:07]} 42. Re2 {[%clk 0:00:04]}  Nf4 {[%clk 0:00:06]} 43. Bxf4 {[%clk 0:00:04]}  Bxf4 {[%clk 0:00:07]} 44. Qe1 {[%clk 0:00:03]}  Re5 {[%clk 0:00:07]} 45. Rxe5 {[%clk 0:00:03]}  Bxe5 {[%clk 0:00:06]} 46. Qd2 {[%clk 0:00:03]}  Qf5 {[%clk 0:00:06]} 47. Qe1 {[%clk 0:00:03]}  Kh7 {[%clk 0:00:05]} 48. Qe2 {[%clk 0:00:04]}  Qf4 {[%clk 0:00:05]} 49. g3 {[%clk 0:00:04]}  Qc1 {[%clk 0:00:05]} 50. Kg2 {[%clk 0:00:04]}  h5 {[%clk 0:00:04]} 51. Kf2 {[%clk 0:00:03]}  Qa1 {[%clk 0:00:04]} 52. f4 {[%clk 0:00:04]}  Bd6 {[%clk 0:00:04]} 53. Qxh5# {[%clk 0:00:04]} 1-0


[Site "https://www.chess.com"]

[Event "Titled Tuesday Blitz January 10 Early 2023"]
[White "Jones, Gawain C B"]
[Black "Sokolovsky, Yahli"]
[WhiteFideId "409561"]
[BlackFideId "2820242"]
[WhiteElo "2618"]
[BlackElo "2461"]
[Result "1-0"]
[Round "07"]
[TimeControl "180+2"]
[Date "2023.01.10"]
[WhiteClock "0:01:04"]
[BlackClock "0:00:03"]

1. e4 {[%clk 0:03:00]}  d6 {[%clk 0:02:59]} 2. Nc3 {[%clk 0:02:59]}  g6 {[%clk 0:02:57]} 3. f4 {[%clk 0:02:59]}  Bg7 {[%clk 0:02:56]} 4. Nf3 {[%clk 0:03:00]}  Nc6 {[%clk 0:02:50]} 5. Bb5 {[%clk 0:02:56]}  e5 {[%clk 0:02:44]} 6. fxe5 {[%clk 0:02:53]}  dxe5 {[%clk 0:02:44]} 7. O-O {[%clk 0:02:53]}  Ne7 {[%clk 0:02:44]} 8. d3 {[%clk 0:02:53]}  O-O {[%clk 0:02:44]} 9. Kh1 {[%clk 0:02:54]}  Bg4 {[%clk 0:02:42]} 10. Bc4 {[%clk 0:02:51]}  Nd4 {[%clk 0:02:42]} 11. Bg5 {[%clk 0:02:46]}  c6 {[%clk 0:02:35]} 12. Qd2 {[%clk 0:02:43]}  Nxf3 {[%clk 0:02:18]} 13. gxf3 {[%clk 0:02:43]}  Bh3 {[%clk 0:02:19]} 14. Rg1 {[%clk 0:02:43]}  Be6 {[%clk 0:02:06]} 15. Bxe6 {[%clk 0:02:40]}  fxe6 {[%clk 0:02:07]} 16. Rg3 {[%clk 0:02:38]}  Qd7 {[%clk 0:02:02]} 17. Nd1 {[%clk 0:02:32]}  c5 {[%clk 0:02:01]} 18. Ne3 {[%clk 0:02:32]}  Nc6 {[%clk 0:02:02]} 19. Ng4 {[%clk 0:02:31]}  Nd4 {[%clk 0:01:58]} 20. Rf1 {[%clk 0:02:29]}  Rf7 {[%clk 0:01:37]} 21. Nh6+ {[%clk 0:02:23]}  Bxh6 {[%clk 0:01:37]} 22. Bxh6 {[%clk 0:02:24]}  Qe7 {[%clk 0:01:27]} 23. c3 {[%clk 0:02:14]}  Nc6 {[%clk 0:01:25]} 24. Qg2 {[%clk 0:02:12]}  Qf6 {[%clk 0:01:22]} 25. f4 {[%clk 0:02:05]}  Kh8 {[%clk 0:01:13]} 26. Bg5 {[%clk 0:01:57]}  Qg7 {[%clk 0:01:13]} 27. fxe5 {[%clk 0:01:58]}  Nxe5 {[%clk 0:01:07]} 28. Rxf7 {[%clk 0:01:50]}  Nxf7 {[%clk 0:01:08]} 29. Be7 {[%clk 0:01:50]}  b6 {[%clk 0:00:49]} 30. Qh3 {[%clk 0:01:46]}  Re8 {[%clk 0:00:44]} 31. Bh4 {[%clk 0:01:25]}  g5 {[%clk 0:00:45]} 32. Rg1 {[%clk 0:01:17]}  Qh6 {[%clk 0:00:34]} 33. Qf1 {[%clk 0:01:17]}  Rf8 {[%clk 0:00:16]} 34. Bg3 {[%clk 0:01:18]}  Kg8 {[%clk 0:00:16]} 35. Qe2 {[%clk 0:01:16]}  Qg7 {[%clk 0:00:14]} 36. Bf4 {[%clk 0:01:13]}  h6 {[%clk 0:00:13]} 37. Qg4 {[%clk 0:01:10]}  Qf6 {[%clk 0:00:11]} 38. h4 {[%clk 0:01:09]}  Kg7 {[%clk 0:00:04]} 39. hxg5 {[%clk 0:01:08]}  hxg5 {[%clk 0:00:05]} 40. Bxg5 {[%clk 0:01:08]}  Rh8+ {[%clk 0:00:03]} 41. Bh6+ {[%clk 0:01:04]} 1-0


[Site "https://www.chess.com"]

[Event "Titled Tuesday Blitz January 10 Early 2023"]
[White "Pultinevicius, Paulius"]
[Black "Dehtiarov, Roman"]
[WhiteFideId "12809390"]
[BlackFideId "14186640"]
[WhiteElo "2537"]
[BlackElo "2289"]
[Result "0-1"]
[Round "07"]
[TimeControl "180+2"]
[Date "2023.01.10"]
[WhiteClock "0:00:15"]
[BlackClock "0:00:17"]

1. d4 {[%clk 0:03:00]}  Nf6 {[%clk 0:02:58]} 2. Bf4 {[%clk 0:03:00]}  d5 {[%clk 0:02:57]} 3. e3 {[%clk 0:03:01]}  c5 {[%clk 0:02:58]} 4. c3 {[%clk 0:03:01]}  Nc6 {[%clk 0:02:58]} 5. Nd2 {[%clk 0:02:59]}  e6 {[%clk 0:02:57]} 6. Ngf3 {[%clk 0:02:59]}  Bd6 {[%clk 0:02:57]} 7. Bg3 {[%clk 0:02:56]}  O-O {[%clk 0:02:57]} 8. Bb5 {[%clk 0:02:57]}  Qe7 {[%clk 0:02:56]} 9. Bxc6 {[%clk 0:02:51]}  bxc6 {[%clk 0:02:57]} 10. Qa4 {[%clk 0:02:49]}  cxd4 {[%clk 0:02:56]} 11. exd4 {[%clk 0:02:38]}  Bd7 {[%clk 0:02:51]} 12. Nb3 {[%clk 0:02:32]}  Bxg3 {[%clk 0:02:47]} 13. hxg3 {[%clk 0:02:32]}  Ne4 {[%clk 0:02:46]} 14. Nfd2 {[%clk 0:02:31]}  Nxd2 {[%clk 0:02:38]} 15. Kxd2 {[%clk 0:02:32]}  e5 {[%clk 0:02:31]} 16. dxe5 {[%clk 0:02:32]}  Qxe5 {[%clk 0:02:28]} 17. Rae1 {[%clk 0:02:18]}  Qf6 {[%clk 0:02:19]} 18. Qf4 {[%clk 0:02:18]}  Qxf4+ {[%clk 0:02:17]} 19. gxf4 {[%clk 0:02:18]}  Rfe8 {[%clk 0:02:17]} 20. Nc5 {[%clk 0:02:19]}  Bf5 {[%clk 0:02:17]} 21. Rxe8+ {[%clk 0:02:11]}  Rxe8 {[%clk 0:02:18]} 22. f3 {[%clk 0:01:27]}  g6 {[%clk 0:02:12]} 23. g4 {[%clk 0:01:25]}  Bc8 {[%clk 0:02:12]} 24. g5 {[%clk 0:01:25]}  Kg7 {[%clk 0:02:12]} 25. Re1 {[%clk 0:01:20]}  Rxe1 {[%clk 0:02:11]} 26. Kxe1 {[%clk 0:01:21]}  f6 {[%clk 0:02:11]} 27. Kf2 {[%clk 0:01:21]}  Kf7 {[%clk 0:02:11]} 28. Ke3 {[%clk 0:01:21]}  Ke7 {[%clk 0:02:09]} 29. Kd4 {[%clk 0:01:20]}  fxg5 {[%clk 0:02:04]} 30. fxg5 {[%clk 0:01:20]}  Kd6 {[%clk 0:02:04]} 31. b4 {[%clk 0:01:15]}  Bf5 {[%clk 0:01:59]} 32. a4 {[%clk 0:01:06]}  Bc8 {[%clk 0:01:56]} 33. c4 {[%clk 0:00:49]}  dxc4 {[%clk 0:01:56]} 34. Ne4+ {[%clk 0:00:47]}  Ke6 {[%clk 0:01:51]} 35. Kxc4 {[%clk 0:00:47]}  Ba6+ {[%clk 0:01:41]} 36. Kc5 {[%clk 0:00:47]}  Be2 {[%clk 0:01:26]} 37. f4 {[%clk 0:00:46]}  Bf3 {[%clk 0:01:26]} 38. Nd6 {[%clk 0:00:46]}  Kd7 {[%clk 0:01:24]} 39. a5 {[%clk 0:00:43]}  Kc7 {[%clk 0:01:21]} 40. Ne8+ {[%clk 0:00:42]}  Kd7 {[%clk 0:01:21]} 41. Nf6+ {[%clk 0:00:37]}  Ke6 {[%clk 0:01:22]} 42. Nxh7 {[%clk 0:00:37]}  Kf5 {[%clk 0:01:22]} 43. Nf8 {[%clk 0:00:33]}  Be4 {[%clk 0:01:20]} 44. Kd6 {[%clk 0:00:32]}  Kxf4 {[%clk 0:01:19]} 45. Ne6+ {[%clk 0:00:25]}  Kf5 {[%clk 0:01:16]} 46. a6 {[%clk 0:00:22]}  Bd5 {[%clk 0:01:06]} 47. Nd4+ {[%clk 0:00:19]}  Kxg5 {[%clk 0:00:58]} 48. b5 {[%clk 0:00:19]}  cxb5 {[%clk 0:00:36]} 49. Kxd5 {[%clk 0:00:20]}  b4 {[%clk 0:00:36]} 50. Kc4 {[%clk 0:00:16]}  Kf6 {[%clk 0:00:29]} 51. Nb5 {[%clk 0:00:14]}  Ke6 {[%clk 0:00:16]} 52. Nxa7 {[%clk 0:00:14]}  Kd6 {[%clk 0:00:16]} 53. Nb5+ {[%clk 0:00:13]}  Kc6 {[%clk 0:00:16]} 54. a7 {[%clk 0:00:14]}  Kb7 {[%clk 0:00:16]} 55. Kxb4 {[%clk 0:00:14]}  g5 {[%clk 0:00:16]} 56. Kc4 {[%clk 0:00:14]}  g4 {[%clk 0:00:16]} 57. Kd3 {[%clk 0:00:14]}  g3 {[%clk 0:00:17]} 58. Ke2 {[%clk 0:00:14]}  g2 {[%clk 0:00:17]} 59. Ke3 {[%clk 0:00:15]}  g1=Q+ {[%clk 0:00:17]} 0-1


[Site "https://www.chess.com"]

[Event "Titled Tuesday Blitz January 10 Early 2023"]
[White "Blanco Ronquillo, Humberto L."]
[Black "Alexakis, Dimitris"]
[WhiteFideId "3504239"]
[BlackFideId "4277023"]
[WhiteElo "2442"]
[BlackElo "2436"]
[Result "0-1"]
[Round "07"]
[TimeControl "180+2"]
[Date "2023.01.10"]
[WhiteClock "0:00:08"]
[BlackClock "0:00:11"]

1. e4 {[%clk 0:03:00]}  c5 {[%clk 0:02:51]} 2. Nf3 {[%clk 0:03:00]}  Nc6 {[%clk 0:02:51]} 3. Bb5 {[%clk 0:03:00]}  g6 {[%clk 0:02:48]} 4. Bxc6 {[%clk 0:03:00]}  bxc6 {[%clk 0:02:49]} 5. O-O {[%clk 0:02:58]}  Bg7 {[%clk 0:02:49]} 6. Re1 {[%clk 0:02:58]}  Rb8 {[%clk 0:02:48]} 7. c3 {[%clk 0:02:57]}  Nf6 {[%clk 0:02:47]} 8. d4 {[%clk 0:02:51]}  cxd4 {[%clk 0:02:46]} 9. cxd4 {[%clk 0:02:52]}  O-O {[%clk 0:02:47]} 10. Nc3 {[%clk 0:02:51]}  d6 {[%clk 0:02:45]} 11. h3 {[%clk 0:02:52]}  Nd7 {[%clk 0:02:46]} 12. b3 {[%clk 0:02:49]}  c5 {[%clk 0:02:45]} 13. Be3 {[%clk 0:02:46]}  Bb7 {[%clk 0:02:45]} 14. Rc1 {[%clk 0:02:42]}  Rc8 {[%clk 0:02:44]} 15. Qd2 {[%clk 0:02:39]}  a6 {[%clk 0:02:42]} 16. Nd5 {[%clk 0:02:37]}  e6 {[%clk 0:02:39]} 17. Nc3 {[%clk 0:02:36]}  Qe7 {[%clk 0:02:39]} 18. Bg5 {[%clk 0:02:11]}  Bf6 {[%clk 0:02:30]} 19. Bh6 {[%clk 0:02:09]}  Bg7 {[%clk 0:02:30]} 20. Bxg7 {[%clk 0:02:08]}  Kxg7 {[%clk 0:02:31]} 21. Na4 {[%clk 0:02:08]}  Rfd8 {[%clk 0:02:20]} 22. dxc5 {[%clk 0:01:47]}  Nxc5 {[%clk 0:02:13]} 23. Nxc5 {[%clk 0:01:47]}  dxc5 {[%clk 0:02:11]} 24. Qa5 {[%clk 0:01:38]}  Qc7 {[%clk 0:01:55]} 25. Qc3+ {[%clk 0:01:35]}  f6 {[%clk 0:01:54]} 26. Qe3 {[%clk 0:01:18]}  e5 {[%clk 0:01:43]} 27. Rc4 {[%clk 0:01:15]}  Qa5 {[%clk 0:01:41]} 28. Ra4 {[%clk 0:01:12]}  Qb5 {[%clk 0:01:39]} 29. Rc1 {[%clk 0:01:08]}  Rd3 {[%clk 0:01:36]} 30. Qe1 {[%clk 0:01:08]}  Qd7 {[%clk 0:01:26]} 31. Rac4 {[%clk 0:01:06]}  Qd6 {[%clk 0:01:25]} 32. R4c3 {[%clk 0:01:03]}  Rxc3 {[%clk 0:01:12]} 33. Rxc3 {[%clk 0:01:04]}  Qc6 {[%clk 0:01:12]} 34. Nd2 {[%clk 0:01:04]}  Rd8 {[%clk 0:01:13]} 35. f3 {[%clk 0:01:02]}  Qd6 {[%clk 0:01:09]} 36. Nc4 {[%clk 0:01:01]}  Qd4+ {[%clk 0:01:09]} 37. Kh2 {[%clk 0:01:02]}  h5 {[%clk 0:01:02]} 38. Qc1 {[%clk 0:01:01]}  Bc8 {[%clk 0:00:43]} 39. Ne3 {[%clk 0:01:00]}  f5 {[%clk 0:00:33]} 40. Rxc5 {[%clk 0:00:59]}  f4 {[%clk 0:00:32]} 41. Nd5 {[%clk 0:00:51]}  Be6 {[%clk 0:00:32]} 42. Rc7+ {[%clk 0:00:50]}  Kh6 {[%clk 0:00:30]} 43. Rc4 {[%clk 0:00:32]}  Qf2 {[%clk 0:00:21]} 44. Nxf4 {[%clk 0:00:27]}  Rd2 {[%clk 0:00:21]} 45. Qxd2 {[%clk 0:00:11]}  Qxd2 {[%clk 0:00:19]} 46. Nxe6 {[%clk 0:00:12]}  Qxa2 {[%clk 0:00:19]} 47. Nc5 {[%clk 0:00:12]}  h4 {[%clk 0:00:16]} 48. Ra4 {[%clk 0:00:12]}  Qc2 {[%clk 0:00:14]} 49. Ra5 {[%clk 0:00:12]}  Qc3 {[%clk 0:00:13]} 50. Nb7 {[%clk 0:00:09]}  Qb4 {[%clk 0:00:13]} 51. Rxe5 {[%clk 0:00:08]}  Qxb7 {[%clk 0:00:12]} 52. f4 {[%clk 0:00:08]}  Qxb3 {[%clk 0:00:11]} 0-1


[Site "https://www.chess.com"]

[Event "Titled Tuesday Blitz January 10 Early 2023"]
[White "Vakhlamov, Igor L."]
[Black "Piesik, Piotr"]
[WhiteFideId "24126748"]
[BlackFideId "1136194"]
[WhiteElo "2413"]
[BlackElo "2426"]
[Result "0-1"]
[Round "07"]
[TimeControl "180+2"]
[Date "2023.01.10"]
[WhiteClock "0:00:39"]
[BlackClock "0:01:38"]

1. e4 {[%clk 0:03:00]}  g6 {[%clk 0:02:55]} 2. d4 {[%clk 0:03:00]}  Bg7 {[%clk 0:02:56]} 3. Nf3 {[%clk 0:02:54]}  c6 {[%clk 0:02:56]} 4. Nc3 {[%clk 0:02:54]}  d6 {[%clk 0:02:56]} 5. Bc4 {[%clk 0:02:53]}  Nf6 {[%clk 0:02:56]} 6. a4 {[%clk 0:02:53]}  O-O {[%clk 0:02:55]} 7. Bb3 {[%clk 0:02:53]}  Bg4 {[%clk 0:02:55]} 8. O-O {[%clk 0:02:52]}  Nbd7 {[%clk 0:02:53]} 9. h3 {[%clk 0:02:52]}  Bxf3 {[%clk 0:02:53]} 10. Qxf3 {[%clk 0:02:53]}  Qc7 {[%clk 0:02:52]} 11. Be3 {[%clk 0:02:48]}  b6 {[%clk 0:02:50]} 12. Rad1 {[%clk 0:02:48]}  a6 {[%clk 0:02:50]} 13. Rfe1 {[%clk 0:02:46]}  b5 {[%clk 0:02:48]} 14. axb5 {[%clk 0:02:41]}  axb5 {[%clk 0:02:49]} 15. Ne2 {[%clk 0:02:29]}  c5 {[%clk 0:02:42]} 16. dxc5 {[%clk 0:02:30]}  Nxc5 {[%clk 0:02:41]} 17. Bxc5 {[%clk 0:02:00]}  Qxc5 {[%clk 0:02:40]} 18. Nc3 {[%clk 0:01:58]}  b4 {[%clk 0:02:31]} 19. Nd5 {[%clk 0:01:51]}  Nxd5 {[%clk 0:02:31]} 20. exd5 {[%clk 0:01:48]}  Ra7 {[%clk 0:02:31]} 21. Rb1 {[%clk 0:01:47]}  Rfa8 {[%clk 0:02:22]} 22. g3 {[%clk 0:01:42]}  Bf6 {[%clk 0:02:18]} 23. h4 {[%clk 0:01:42]}  h5 {[%clk 0:02:17]} 24. Kg2 {[%clk 0:01:42]}  Ra5 {[%clk 0:02:13]} 25. Qf4 {[%clk 0:01:34]}  Kg7 {[%clk 0:02:10]} 26. Re4 {[%clk 0:01:34]}  Ra1 {[%clk 0:02:04]} 27. Rxa1 {[%clk 0:01:33]}  Rxa1 {[%clk 0:02:05]} 28. Rxb4 {[%clk 0:01:29]}  Bxb2 {[%clk 0:02:05]} 29. Ra4 {[%clk 0:01:02]}  Rb1 {[%clk 0:02:03]} 30. Qe4 {[%clk 0:00:54]}  Bf6 {[%clk 0:01:59]} 31. Qe2 {[%clk 0:00:50]}  Qc3 {[%clk 0:01:54]} 32. Ra7 {[%clk 0:00:46]}  Re1 {[%clk 0:01:51]} 33. Qc4 {[%clk 0:00:44]}  Qd2 {[%clk 0:01:45]} 34. Qc8 {[%clk 0:00:40]}  Qd1 {[%clk 0:01:39]} 35. Qh8+ {[%clk 0:00:39]}  Kxh8 {[%clk 0:01:38]} 0-1


[Site "https://www.chess.com"]